fUSD/lending_fUSD_20260521
["ID","MTS","AMOUNT","RATE_DAILY","PERIOD"]
[422741789,1779341469000,-1795.6,0.00027927,30]
[422741833,1779341469000,-1410.42,0.00028001,7]
[422741780,1779341469000,-1414.24,0.00027904,2]
[422741837,1779341469000,-1545.19,0.0002801,2]
[422741874,1779341469000,-10000.0,0.000281,15]
[422741873,1779341469000,-678.89,0.00028088,7]
[422741870,1779341469000,-1793.85,0.00028087,7]
[422741868,1779341469000,-1795.6,0.00028086,7]
[422741876,1779341469000,-1793.85,0.00028101,30]
[422741886,1779341469000,-678.89,0.00028116,2]
[422741887,1779341469000,-1178.13,0.00028126,7]
[422741878,1779341469000,-1410.42,0.00028101,30]
[422741888,1779341469000,-1414.42,0.0002813,7]
[422741883,1779341469000,-1795.6,0.00028115,2]
[422741877,1779341469000,-1795.6,0.00028101,30]
[422741879,1779341469000,-592.48,0.00028101,30]
[422741880,1779341469000,-678.89,0.00028102,30]
[422741872,1779341469000,-592.48,0.00028087,7]
[422741885,1779341469000,-592.48,0.00028115,2]
[422741882,1779341469000,-1793.85,0.00028115,2]
[422741881,1779341469000,-1414.24,0.00028115,2]
[422741884,1779341469000,-1410.42,0.00028115,2]
[422741889,1779341469000,-1793.96,0.0002813,7]
[422741891,1779341469000,-1795.79,0.0002813,7]
[422741892,1779341469000,-1410.58,0.0002813,7]
[422741893,1779341469000,-592.55,0.0002813,7]
[422741890,1779341469000,-678.89,0.0002813,7]
[422741894,1779341469000,-273.8,0.00028145,2]
[422741898,1779341469000,-273.8,0.00028145,7]
[422741896,1779341469000,-273.8,0.00028145,30]
[422741895,1779341469000,-273.8,0.00028145,7]
[422741835,1779341469000,-592.48,0.00028003,7]
[422741875,1779341469000,-1414.24,0.00028101,30]
[422741869,1779341469000,-1414.24,0.00028087,7]
[422741897,1779341469000,-273.8,0.00028145,2]
[422741866,1779341469000,-592.48,0.00028073,2]
[422741840,1779341469000,-1410.42,0.00028015,30]
[422741838,1779341469000,-1795.6,0.00028014,30]
[422741839,1779341469000,-1793.85,0.00028015,30]
[422741848,1779341469000,-592.48,0.00028031,2]
[422741841,1779341469000,-1414.24,0.00028017,30]
[422741842,1779341469000,-592.48,0.00028017,30]
[422741845,1779341469000,-1793.85,0.0002803,2]
[422741846,1779341469000,-1410.42,0.0002803,2]
[422741871,1779341469000,-1410.42,0.00028087,7]
[422741844,1779341469000,-1795.6,0.00028028,2]
[422741847,1779341469000,-1414.24,0.00028031,2]
[422741850,1779341469000,-1795.6,0.00028043,7]
[422741860,1779341469000,-592.48,0.00028059,30]
[422741859,1779341469000,-1414.24,0.00028059,30]
[422741843,1779341469000,-678.89,0.00028018,30]
[422741851,1779341469000,-1793.85,0.00028044,7]
[422741864,1779341469000,-1410.42,0.00028072,2]
[422741853,1779341469000,-1414.24,0.00028045,7]
[422741865,1779341469000,-1414.24,0.00028073,2]
[422741867,1779341469000,-678.89,0.00028074,2]
[422741863,1779341469000,-1795.6,0.00028072,2]
[422741858,1779341469000,-1410.42,0.00028058,30]
[422741862,1779341469000,-1793.85,0.00028072,2]
[422741857,1779341469000,-1793.85,0.00028058,30]
[422741852,1779341469000,-1410.42,0.00028044,7]
[422741854,1779341469000,-592.48,0.00028045,7]
[422741861,1779341469000,-678.89,0.0002806,30]
[422741849,1779341469000,-678.89,0.00028032,2]
[422741856,1779341469000,-1795.6,0.00028057,30]
[422741855,1779341469000,-678.89,0.00028046,7]
[422741938,1779341470000,-550.0,0.00028188,2]
[422741941,1779341470000,-550.0,0.00028188,2]
[422741940,1779341470000,-550.0,0.00028188,2]
[422741936,1779341470000,-550.0,0.00028188,2]
[422741939,1779341470000,-550.0,0.00028188,2]
[422741926,1779341470000,-258.72,0.00028152,2]
[422741933,1779341470000,-258.82,0.00028152,7]
[422741931,1779341470000,-258.72,0.00028152,30]
[422741924,1779341470000,-258.72,0.00028152,7]
[422741935,1779341470000,-1102.0,0.00028188,2]
[422741937,1779341470000,-550.0,0.00028188,2]
[422741944,1779341470000,-150.0,0.00028192,2]
[422741952,1779341470000,-733.0,0.00028506,4]
[422741945,1779341470000,-1660.77,0.00028203,2]
[422741942,1779341470000,-550.0,0.00028188,2]
[422741943,1779341470000,-550.0,0.00028188,2]
[422741947,1779341470000,-13316.57,0.000283,14]
[422741949,1779341470000,-5000.0,0.00028463,7]
[422741951,1779341470000,-1003.35,0.000285,7]
[422741953,1779341470000,-1013.13108072,0.00028584,3]
[422741955,1779341470000,-13316.57,0.000286,14]
[422741958,1779341470000,-1655.42,0.000287,7]
[422741954,1779341470000,-1013.1537348,0.00028584,3]
[422741950,1779341470000,-169.89,0.00028493,2]
[422741948,1779341470000,-1655.42,0.000283,7]
[422741934,1779341470000,-2000.0,0.00028188,2]
[422741946,1779341470000,-2402.1,0.00028267,2]
[422741930,1779341470000,-258.72,0.00028152,7]
[422741913,1779341470000,-273.94,0.00028145,7]
[422741929,1779341470000,-258.72,0.00028152,2]
[422741957,1779341470000,-266.0,0.000287,21]
[422741900,1779341470000,-273.8,0.00028145,2]
[422741899,1779341470000,-273.8,0.00028145,30]
[422741902,1779341470000,-273.8,0.00028145,30]
[422741912,1779341470000,-273.8,0.00028145,2]
[422741901,1779341470000,-273.8,0.00028145,7]
[422741907,1779341470000,-273.8,0.00028145,7]
[422741905,1779341470000,-273.8,0.00028145,30]
[422741908,1779341470000,-273.8,0.00028145,30]
[422741904,1779341470000,-273.8,0.00028145,7]
[422741903,1779341470000,-273.8,0.00028145,2]
[422741906,1779341470000,-273.8,0.00028145,2]
[422741910,1779341470000,-273.8,0.00028145,7]
[422741932,1779341470000,-258.72,0.00028152,2]
[422741909,1779341470000,-273.8,0.00028145,2]
[422741915,1779341470000,-258.72,0.00028152,7]
[422741914,1779341470000,-258.72,0.00028152,2]
[422741916,1779341470000,-258.72,0.00028152,30]
[422741917,1779341470000,-258.72,0.00028152,2]
[422741922,1779341470000,-258.72,0.00028152,30]
[422741919,1779341470000,-258.72,0.00028152,30]
[422741918,1779341470000,-258.72,0.00028152,7]
[422741920,1779341470000,-258.72,0.00028152,2]
[422741921,1779341470000,-258.72,0.00028152,7]
[422741927,1779341470000,-258.72,0.00028152,7]
[422741923,1779341470000,-258.72,0.00028152,2]
[422741925,1779341470000,-258.72,0.00028152,30]
[422741928,1779341470000,-258.72,0.00028152,30]
[422741911,1779341470000,-273.8,0.00028145,30]
[422741956,1779341470000,-391.33982836,0.00028615,2]
[422741966,1779341470000,-150.0,0.00028767,2]
[422741959,1779341470000,-392.0,0.00028756,14]
[422741988,1779341470000,-382.0,0.00029,2]
[422741989,1779341470000,-842.60285441,0.00029,2]
[422741992,1779341470000,-1000.0,0.00029,2]
[422741991,1779341470000,-1000.0,0.00029,2]
[422741997,1779341470000,-4474.91678066,0.00029,2]
[422742001,1779341470000,-236.79,0.00029,6]
[422742002,1779341470000,-806.2,0.00029,2]
[422741999,1779341470000,-236.79,0.00029,7]
[422742000,1779341470000,-236.79,0.00029,7]
[422741998,1779341470000,-806.19,0.00029,2]
[422742004,1779341470000,-1469.14041385,0.00029,2]
[422742008,1779341470000,-236.16,0.00029,2]
[422742010,1779341470000,-806.05,0.00029,2]
[422742006,1779341470000,-151.3728442,0.00029,5]
[422742003,1779341470000,-806.2,0.00029,2]
[422742009,1779341470000,-1003.35,0.00029,7]
[422742007,1779341470000,-236.17,0.00029,2]
[422742005,1779341470000,-1000.0,0.00029,2]
[422742012,1779341470000,-525.56757214,0.00029,2]
[422742011,1779341470000,-1000.0,0.00029,2]
[422742013,1779341470000,-199.0,0.00029,2]
[422742015,1779341470000,-2000.0,0.00029,7]
[422742014,1779341470000,-19253.0,0.00029,2]
[422742016,1779341470000,-5000.0,0.00029,2]
[422741960,1779341470000,-219.27,0.0002876,2]
[422742018,1779341470000,-1000.0,0.00029,2]
[422742017,1779341470000,-10000.0,0.00029,2]
[422741993,1779341470000,-18226.07223455,0.00029,2]
[422741987,1779341470000,-419.76984509,0.00029,2]
[422742019,1779341470000,-6499.0,0.00029,2]
[422741985,1779341470000,-10000.0,0.00029,2]
[422741990,1779341470000,-158.42845197,0.00029,2]
[422741962,1779341470000,-150.0,0.00028767,30]
[422741963,1779341470000,-150.14401124,0.00028767,14]
[422741965,1779341470000,-150.14401124,0.00028767,14]
[422741964,1779341470000,-150.14401124,0.00028767,14]
[422741968,1779341470000,-1000.0,0.00028767,120]
[422741967,1779341470000,-1000.0,0.00028767,120]
[422741969,1779341470000,-295.54199851,0.00028782,7]
[422741970,1779341470000,-215.23956962,0.000288,10]
[422741973,1779341470000,-168.88372931,0.00028827,7]
[422741972,1779341470000,-201.81336186,0.00028827,2]
[422741971,1779341470000,-160.0327049,0.00028813,5]
[422741981,1779341470000,-1210.0,0.00029,2]
[422741961,1779341470000,-227.0,0.00028767,2]
[422741977,1779341470000,-1142.78,0.0002897,7]
[422741982,1779341470000,-509.9116828,0.00029,2]
[422741986,1779341470000,-287.83,0.00029,2]
[422741994,1779341470000,-1226.16800415,0.00029,2]
[422741995,1779341470000,-806.2,0.00029,2]
[422741984,1779341470000,-450.0,0.00029,2]
[422741983,1779341470000,-576.48515702,0.00029,2]
[422741996,1779341470000,-806.2,0.00029,2]
[422741979,1779341470000,-392.0,0.00028997,14]
[422741975,1779341470000,-1033.17,0.000289,7]
[422741974,1779341470000,-13316.57,0.000289,14]
[422741980,1779341470000,-641.35925313,0.00029,7]
[422741976,1779341470000,-9104.4314938,0.000289,2]
[422741978,1779341470000,-177.08328508,0.00028971,2]
[422742058,1779341471000,-1000.0,0.0002984,2]
[422742051,1779341471000,-1000.0,0.00029839,2]
[422742056,1779341471000,-1000.0,0.0002984,2]
[422742054,1779341471000,-1000.0,0.0002984,2]
[422742050,1779341471000,-1000.0,0.00029839,2]
[422742049,1779341471000,-1000.0,0.00029839,2]
[422742048,1779341471000,-1655.42,0.000297,7]
[422742052,1779341471000,-1000.0,0.00029839,2]
[422742068,1779341471000,-315.175001,0.00029973,7]
[422742055,1779341471000,-1000.0,0.0002984,2]
[422742053,1779341471000,-1000.0,0.00029839,2]
[422742067,1779341471000,-315.175001,0.00029973,7]
[422742057,1779341471000,-1000.0,0.0002984,2]
[422742059,1779341471000,-151.02245189,0.00029873,2]
[422742061,1779341471000,-80150.6143597,0.000299,2]
[422742065,1779341471000,-1100.0,0.0002992,30]
[422742062,1779341471000,-339.0,0.0002992,30]
[422742066,1779341471000,-232.52863687,0.0002995,4]
[422742064,1779341471000,-174.0,0.0002992,30]
[422742063,1779341471000,-367.0,0.0002992,30]
[422742069,1779341471000,-315.175001,0.00029973,7]
[422742072,1779341471000,-315.175001,0.00029973,7]
[422742071,1779341471000,-315.175001,0.00029973,7]
[422742047,1779341471000,-215.23956962,0.000297,10]
[422742060,1779341471000,-830.5,0.00029876,10]
[422742046,1779341471000,-733.0,0.00029602,6]
[422742030,1779341471000,-1588.08,0.000291,2]
[422742040,1779341471000,-3634.0,0.00029454,2]
[422742074,1779341471000,-315.175001,0.00029973,7]
[422742022,1779341471000,-11173.0,0.00029,2]
[422742020,1779341471000,-9978.0,0.00029,2]
[422742021,1779341471000,-2031.0,0.00029,2]
[422742023,1779341471000,-13023.0,0.00029,2]
[422742025,1779341471000,-160.59709088,0.00029,2]
[422742024,1779341471000,-9289.0,0.00029,2]
[422742028,1779341471000,-733.0,0.00029054,5]
[422742027,1779341471000,-529.52,0.00029037,7]
[422742026,1779341471000,-806.2,0.00029001,2]
[422742033,1779341471000,-772.41,0.000291,2]
[422742045,1779341471000,-150.0,0.00029601,2]
[422742031,1779341471000,-1588.08,0.000291,2]
[422742032,1779341471000,-772.41,0.000291,2]
[422742035,1779341471000,-322.82,0.000291,2]
[422742034,1779341471000,-322.82,0.000291,2]
[422742036,1779341471000,-4501.39,0.000291,2]
[422742037,1779341471000,-3794.7,0.000291,2]
[422742039,1779341471000,-402.17,0.000291,2]
[422742038,1779341471000,-1655.42,0.000291,7]
[422742043,1779341471000,-1227.22,0.00029533,7]
[422742042,1779341471000,-500.0,0.00029518,120]
[422742041,1779341471000,-1354.0,0.00029454,2]
[422742044,1779341471000,-1003.35,0.000296,7]
[422742029,1779341471000,-9861.26,0.000291,2]
[422742076,1779341471000,-315.175001,0.00029973,7]
[422742124,1779341471000,-243323.0431238,0.0003013,7]
[422742077,1779341471000,-315.175001,0.00029973,7]
[422742101,1779341471000,-22261.51751692,0.0003,7]
[422742100,1779341471000,-22261.51751692,0.0003,7]
[422742103,1779341471000,-500.0,0.0003,7]
[422742107,1779341471000,-16224.5157157,0.0003,7]
[422742106,1779341471000,-16224.5157157,0.0003,7]
[422742110,1779341471000,-13316.57,0.0003,14]
[422742109,1779341471000,-16224.5157157,0.0003,7]
[422742112,1779341471000,-5388.4053312,0.0003,3]
[422742111,1779341471000,-200.0,0.0003,11]
[422742116,1779341471000,-269.67,0.0003,11]
[422742114,1779341471000,-38920.91726238,0.0003,5]
[422742099,1779341471000,-22261.51751692,0.0003,7]
[422742117,1779341471000,-10018.12365498,0.0003,6]
[422742121,1779341471000,-311.64891758,0.0003,5]
[422742118,1779341471000,-669.91415585,0.0003,3]
[422742120,1779341471000,-650.0,0.0003,2]
[422742119,1779341471000,-215.23956962,0.0003,3]
[422742122,1779341471000,-173.0,0.0003,14]
[422742126,1779341471000,-354.07539617,0.00030137,120]
[422742123,1779341471000,-591.08399702,0.00030126,7]
[422742125,1779341471000,-364.57,0.0003013,15]
[422742128,1779341471000,-1011.21,0.00030137,2]
[422742127,1779341471000,-965.05,0.00030137,2]
[422742073,1779341471000,-315.175001,0.00029973,7]
[422742115,1779341471000,-100000.0,0.0003,7]
[422742097,1779341471000,-1000.0,0.0003,2]
[422742113,1779341471000,-586.46774278,0.0003,4]
[422742108,1779341471000,-16224.5157157,0.0003,7]
[422742105,1779341471000,-200.0,0.0003,11]
[422742080,1779341471000,-315.175001,0.00029973,7]
[422742078,1779341471000,-315.175001,0.00029973,7]
[422742079,1779341471000,-315.175001,0.00029973,7]
[422742075,1779341471000,-315.175001,0.00029973,7]
[422742081,1779341471000,-315.175001,0.00029973,7]
[422742082,1779341471000,-315.175001,0.00029973,7]
[422742084,1779341471000,-315.175001,0.00029973,7]
[422742094,1779341471000,-13099.90203028,0.0003,7]
[422742095,1779341471000,-202.57376868,0.0003,3]
[422742096,1779341471000,-17833.31937454,0.0003,8]
[422742083,1779341471000,-315.175001,0.00029973,7]
[422742070,1779341471000,-315.175001,0.00029973,7]
[422742102,1779341471000,-22261.51751692,0.0003,7]
[422742092,1779341471000,-13099.90203028,0.0003,7]
[422742104,1779341471000,-200.0,0.0003,11]
[422742098,1779341471000,-1000.0,0.0003,2]
[422742091,1779341471000,-13099.90203028,0.0003,7]
[422742088,1779341471000,-150.17,0.00029999,3]
[422742089,1779341471000,-150.17,0.00029999,3]
[422742085,1779341471000,-315.175001,0.00029973,7]
[422742093,1779341471000,-13099.90203028,0.0003,7]
[422742090,1779341471000,-7577.3970043,0.0003,2]
[422742086,1779341471000,-315.174995,0.00029973,7]
[422742087,1779341471000,-240.97880249,0.0002999,2]
[422742174,1779341472000,-177.11887129,0.00031056,7]
[422742167,1779341472000,-391.33982836,0.0003092,30]
[422742169,1779341472000,-1000.0,0.00030999,32]
[422742168,1779341472000,-1072.09,0.00030939,7]
[422742162,1779341472000,-1635.26818831,0.0003084,2]
[422742157,1779341472000,-207.45185816,0.00030575,7]
[422742163,1779341472000,-339.0,0.0003092,30]
[422742160,1779341472000,-4330.02,0.0003063,5]
[422742161,1779341472000,-733.0,0.00030697,7]
[422742158,1779341472000,-155.19696045,0.00030575,2]
[422742178,1779341472000,-605.44008559,0.00031071,2]
[422742159,1779341472000,-206.24141652,0.00030576,2]
[422742173,1779341472000,-886.62599553,0.00031023,7]
[422742185,1779341472000,-385.75736758,0.00031071,7]
[422742170,1779341472000,-349.91781792,0.00031,5]
[422742175,1779341472000,-423.35561533,0.00031056,5]
[422742177,1779341472000,-476.83386896,0.00031071,7]
[422742171,1779341472000,-2226.53711816,0.00031,2]
[422742176,1779341472000,-480.09811469,0.00031056,5]
[422742182,1779341472000,-506.65118794,0.00031071,7]
[422742189,1779341472000,-196338.0,0.000311,2]
[422742188,1779341472000,-200.0,0.00031096,2]
[422742179,1779341472000,-217.56066815,0.00031071,7]
[422742181,1779341472000,-276.05499765,0.00031071,7]
[422742180,1779341472000,-352.12235346,0.00031071,2]
[422742155,1779341472000,-223.29344094,0.0003056,2]
[422742172,1779341472000,-64215.9818627,0.00031,2]
[422742166,1779341472000,-1100.0,0.0003092,30]
[422742132,1779341472000,-391.33982836,0.00030137,2]
[422742156,1779341472000,-162.73122119,0.0003056,7]
[422742130,1779341472000,-177.16,0.00030137,120]
[422742131,1779341472000,-2014.65276215,0.00030137,2]
[422742184,1779341472000,-420.28004283,0.00031071,7]
[422742129,1779341472000,-200.0,0.00030137,2]
[422742133,1779341472000,-391.33982836,0.00030137,30]
[422742137,1779341472000,-238.41693448,0.00030173,7]
[422742139,1779341472000,-176.06117673,0.00030173,2]
[422742135,1779341472000,-211.67780766,0.00030158,5]
[422742138,1779341472000,-403.62672373,0.00030173,2]
[422742143,1779341472000,-192.87868379,0.00030174,7]
[422742141,1779341472000,-155.89824801,0.00030174,7]
[422742142,1779341472000,-210.14002142,0.00030174,7]
[422742136,1779341472000,-320.06540979,0.00030158,5]
[422742140,1779341472000,-337.76745863,0.00030173,7]
[422742134,1779341472000,-733.0,0.0003015,6]
[422742144,1779341472000,-152.0,0.0003018,4]
[422742149,1779341472000,-150.0,0.00030205,2]
[422742148,1779341472000,-1655.42,0.000302,7]
[422742147,1779341472000,-2986.44,0.000302,2]
[422742146,1779341472000,-15786.78333361,0.000302,2]
[422742145,1779341472000,-191.35528457,0.0003018,5]
[422742151,1779341472000,-9861.26,0.000303,2]
[422742150,1779341472000,-2402.1,0.00030239,2]
[422742154,1779341472000,-392.0,0.00030447,14]
[422742153,1779341472000,-73227.2720269,0.00030441,2]
[422742152,1779341472000,-1190.4,0.00030419,7]
[422742164,1779341472000,-367.0,0.0003092,30]
[422742165,1779341472000,-174.0,0.0003092,30]
[422742183,1779341472000,-311.79649601,0.00031071,7]
[422742190,1779341472000,-452.490909,0.000312,7]
[422742186,1779341472000,-171.72986977,0.00031071,7]
[422742216,1779341472000,-238.38768687,0.00031669,7]
[422742218,1779341472000,-168.58165989,0.00031669,2]
[422742222,1779341472000,-552.10999531,0.00031669,7]
[422742221,1779341472000,-528.18353019,0.00031669,2]
[422742220,1779341472000,-164.76235063,0.00031669,2]
[422742224,1779341472000,-268.91547899,0.00031669,7]
[422742223,1779341472000,-675.53491726,0.00031669,7]
[422742230,1779341472000,-500.0,0.00031691,14]
[422742240,1779341472000,-270.0,0.00031898,10]
[422742241,1779341472000,-200.12,0.00031901,7]
[422742229,1779341472000,-343.45973954,0.0003167,7]
[422742242,1779341472000,-250.0,0.00031901,7]
[422742236,1779341472000,-733.0,0.00031793,8]
[422742239,1779341472000,-150.0,0.00031873,2]
[422742237,1779341472000,-78012.4298291,0.00031795,7]
[422742233,1779341472000,-150.0,0.00031716,2]
[422742232,1779341472000,-391.33982836,0.00031703,30]
[422742231,1779341472000,-5530.0,0.000317,3]
[422742235,1779341472000,-6148.07,0.00031739,7]
[422742238,1779341472000,-199.09566065,0.00031795,7]
[422742244,1779341472000,-367.0,0.0003192,30]
[422742243,1779341472000,-339.0,0.0003192,30]
[422742245,1779341472000,-174.0,0.0003192,30]
[422742246,1779341472000,-1100.0,0.0003192,30]
[422742247,1779341472000,-1000.0,0.00031999,33]
[422742248,1779341472000,-1761.39419145,0.00032,2]
[422742187,1779341472000,-150.0,0.00031081,2]
[422742217,1779341472000,-432.32060578,0.00031669,7]
[422742219,1779341472000,-435.12133631,0.00031669,7]
[422742234,1779341472000,-6998.3,0.00031739,7]
[422742226,1779341472000,-351.96342235,0.0003167,7]
[422742193,1779341472000,-733.0,0.00031245,7]
[422742191,1779341472000,-459.452307,0.000312,7]
[422742228,1779341472000,-578.63605137,0.0003167,7]
[422742196,1779341472000,-150.0,0.00031383,22]
[422742202,1779341472000,-412.48283304,0.00031483,2]
[422742198,1779341472000,-446.58688188,0.00031467,2]
[422742192,1779341472000,-452.490909,0.000312,7]
[422742195,1779341472000,-1153.59,0.00031305,7]
[422742199,1779341472000,-325.46244238,0.00031467,7]
[422742194,1779341472000,-1129.42,0.00031305,7]
[422742200,1779341472000,-414.90371632,0.00031482,7]
[422742201,1779341472000,-310.39392091,0.00031482,2]
[422742204,1779341472000,-150.0,0.000315,2]
[422742215,1779341472000,-171.25982021,0.00031669,7]
[422742197,1779341472000,-20193.83735115,0.0003143,4]
[422742214,1779341472000,-411.53631548,0.00031669,7]
[422742227,1779341472000,-630.42006425,0.0003167,7]
[422742225,1779341472000,-467.69474402,0.0003167,7]
[422742212,1779341472000,-715.25080344,0.00031669,7]
[422742203,1779341472000,-200.5885028,0.000315,2]
[422742206,1779341472000,-1182.16799404,0.0003162,7]
[422742208,1779341472000,-635.03342299,0.00031654,5]
[422742213,1779341472000,-807.25344745,0.00031669,2]
[422742207,1779341472000,-354.23774259,0.00031654,7]
[422742210,1779341472000,-299.26250523,0.00031656,7]
[422742211,1779341472000,-222.93015165,0.00031669,7]
[422742205,1779341472000,-1000.0,0.000315,7]
[422742209,1779341472000,-640.13081959,0.00031654,5]
[422742290,1779341473000,-500.0,0.00032411,2]
[422742288,1779341473000,-500.0,0.00032411,2]
[422742289,1779341473000,-500.0,0.00032411,2]
[422742291,1779341473000,-500.0,0.00032411,2]
[422742293,1779341473000,-500.0,0.00032411,2]
[422742292,1779341473000,-500.0,0.00032411,2]
[422742287,1779341473000,-500.0,0.00032411,2]
[422742286,1779341473000,-500.0,0.00032411,2]
[422742283,1779341473000,-500.0,0.00032411,2]
[422742296,1779341473000,-500.0,0.00032411,2]
[422742294,1779341473000,-996.3,0.00032411,2]
[422742295,1779341473000,-500.0,0.00032411,2]
[422742285,1779341473000,-500.0,0.00032411,2]
[422742298,1779341473000,-500.0,0.00032411,2]
[422742311,1779341473000,-1101.11,0.00032482,7]
[422742300,1779341473000,-500.0,0.00032411,2]
[422742297,1779341473000,-500.0,0.00032411,2]
[422742308,1779341473000,-602.47,0.00032411,2]
[422742309,1779341473000,-3634.0,0.00032454,2]
[422742301,1779341473000,-500.0,0.00032411,2]
[422742306,1779341473000,-500.0,0.00032411,2]
[422742302,1779341473000,-500.0,0.00032411,2]
[422742305,1779341473000,-500.0,0.00032411,2]
[422742303,1779341473000,-500.0,0.00032411,2]
[422742304,1779341473000,-597.53,0.00032411,2]
[422742307,1779341473000,-500.0,0.00032411,2]
[422742313,1779341473000,-1093.38,0.00032487,7]
[422742321,1779341473000,-150.0,0.00032873,2]
[422742284,1779341473000,-500.0,0.00032411,2]
[422742299,1779341473000,-500.0,0.00032411,2]
[422742281,1779341473000,-500.0,0.00032411,2]
[422742253,1779341473000,-1003.35,0.00032,7]
[422742271,1779341473000,-1009.06680932,0.00032267,2]
[422742319,1779341473000,-4912.50607181,0.000328,2]
[422742254,1779341473000,-200.0,0.00032055,2]
[422742255,1779341473000,-669.88032282,0.00032071,2]
[422742249,1779341473000,-6691.51182789,0.00032,7]
[422742251,1779341473000,-700.0,0.00032,2]
[422742252,1779341473000,-1797.41475157,0.00032,120]
[422742257,1779341473000,-488.19366357,0.00032071,7]
[422742268,1779341473000,-1477.70999255,0.00032218,7]
[422742267,1779341473000,-2402.1,0.0003221,5]
[422742258,1779341473000,-300.93239175,0.00032087,7]
[422742256,1779341473000,-175.01328827,0.00032071,7]
[422742269,1779341473000,-1660.77,0.00032232,2]
[422742261,1779341473000,-465.59088136,0.00032087,2]
[422742259,1779341473000,-622.35557448,0.00032087,7]
[422742282,1779341473000,-500.0,0.00032411,2]
[422742263,1779341473000,-408.26738126,0.00032087,7]
[422742265,1779341473000,-618.72424956,0.00032087,2]
[422742264,1779341473000,-165.0169709,0.00032087,7]
[422742262,1779341473000,-235.08822507,0.00032087,7]
[422742266,1779341473000,-590.0,0.00032106,2]
[422742270,1779341473000,-800.16352448,0.00032252,5]
[422742273,1779341473000,-909.03877955,0.000323,2]
[422742272,1779341473000,-844.41864657,0.00032267,7]
[422742274,1779341473000,-733.0,0.00032341,9]
[422742276,1779341473000,-5530.0,0.000324,5]
[422742275,1779341473000,-1036.75,0.00032345,7]
[422742277,1779341473000,-897.53,0.00032411,2]
[422742278,1779341473000,-500.0,0.00032411,2]
[422742279,1779341473000,-500.0,0.00032411,2]
[422742280,1779341473000,-500.0,0.00032411,2]
[422742260,1779341473000,-428.55232116,0.00032087,7]
[422742314,1779341473000,-1116.77,0.00032487,7]
[422742250,1779341473000,-349.2033874,0.00032,3]
[422742322,1779341473000,-1000.0,0.00032875,67]
[422742351,1779341473000,-837.94970055,0.00032876,2]
[422742356,1779341473000,-1287.080631,0.00032877,7]
[422742355,1779341473000,-1002.81,0.00032877,2]
[422742353,1779341473000,-837.94970055,0.00032876,2]
[422742352,1779341473000,-837.94970055,0.00032876,2]
[422742357,1779341473000,-1287.080631,0.00032877,7]
[422742354,1779341473000,-837.94970055,0.00032876,2]
[422742362,1779341473000,-1287.080631,0.00032877,7]
[422742359,1779341473000,-1287.080631,0.00032877,7]
[422742358,1779341473000,-1287.080631,0.00032877,7]
[422742360,1779341473000,-226.517363,0.00032877,7]
[422742361,1779341473000,-1287.080631,0.00032877,7]
[422742364,1779341473000,-1287.080631,0.00032877,7]
[422742375,1779341473000,-1287.080631,0.00032877,7]
[422742347,1779341473000,-2908.64069996,0.00032876,2]
[422742366,1779341473000,-1287.080631,0.00032877,7]
[422742363,1779341473000,-1287.080631,0.00032877,7]